Cogmind - Beta 12 @@@ ROGUE MODE // 2023.04.18 @ 12:23:43 Player: Mr Goldstein Result: Self-destructed Performance ------------- Evolutions (4) 2000 Regions Visited (7) 1400 Robots Destroyed (5) 25 Value Destroyed (175) 175 Prototype IDs (0) 0 Alien Tech Used (0) 0 Bonus (1461) 1461 TOTAL SCORE: 5061 Bonus ------- Pacifist 961 Entered DSFs 500 Cogmind --------- Core Integrity 65/850 Matter 210/300 Energy 99/100 System Corruption 0% Temperature Cool (0) Movement Core (50) Location -6/Factory Parts ------- > --- POWER (1) -------- (None) > --- PROPULSION (2) --- (None) > --- UTILITY (10) ----- (None) > --- WEAPON (2) ------- (None) > --- INVENTORY (5) ---- (None) Peak State ------------ > --- POWER ------------ (None) > --- PROPULSION ------- (None) > --- UTILITY ---------- Improved Trap Scanner > --- WEAPON ----------- (None) > --- INVENTORY -------- Grenade Launcher Grenade Launcher [Rating: 5] Favorites ----------- Power None Propulsion None Utility Improved Trap Scanner Device Improved Trap Scanner Weapon Grenade Launcher Launcher Grenade Launcher Build | -11 -10 -9 -9 -9 -7 -7 -6 ------- Run | Jun Mat Mat Sto Rec Fac DSF Fac Slots Evolved 8 | . . 2 . . 4 . 2 Power . | . . . . . . . . Propulsion . | . . . . . . . . Utility 8 | . . 2 . . 4 . 2 Weapon . | . . . . . . . . Parts Attached 5 | . . . . . . . 5 Power . | . . . . . . . . Engine . | . . . . . . . . Core . | . . . . . . . . Reactor . | . . . . . . . . Propulsion . | . . . . . . . . Treads . | . . . . . . . . Leg . | . . . . . . . . Wheel . | . . . . . . . . Hover . | . . . . . . . . Flight . | . . . . . . . . Utility 1 | . . . . . . . 1 Device 1 | . . . . . . . 1 Storage . | . . . . . . . . Processor . | . . . . . . . . Hackware . | . . . . . . . . Protection . | . . . . . . . . Artifact . | . . . . . . . . Weapon 4 | . . . . . . . 4 Energy Gun . | . . . . . . . . Energy Cannon . | . . . . . . . . Ballistic Gun . | . . . . . . . . Ballistic Cannon . | . . . . . . . . Launcher 4 | . . . . . . . 4 Special Weapon . | . . . . . . . . Impact Weapon . | . . . . . . . . Slashing Weapon . | . . . . . . . . Piercing Weapon . | . . . . . . . . Special Melee Weapon . | . . . . . . . . Unidentified Prototypes . | . . . . . . . . Parts Lost 3 | . . . . . . . 3 Power . | . . . . . . . . Propulsion . | . . . . . . . . Utility 1 | . . . . . . . 1 Weapon 2 | . . . . . . . 2 Highest Loss Streak 2 | . . . . . . . 2 To Critical Strikes . | . . . . . . . . Average Slot Usage (%) 1 | . . . . . . . 4 Naked Turns 387 | . 43 45 39 86 48 76 50 Heaviest Build 3 | . . . . . . . 3 Greatest Support 3 | 3 3 3 3 3 3 3 3 Greatest Overweight (x) . | . . . . . . . . Average Overweight (x) . | . . . . . . . . Largest Inventory Capacity 5 | 5 5 5 5 5 5 5 5 Average Capacity 5 | 5 5 5 5 5 5 5 5 Most Carried 2 | . 2 2 2 2 2 2 2 Average Carried 1 | . 1 2 2 2 2 2 1 Final Capacity 5 | 5 5 5 5 5 5 5 5 Final Carried 2 | . 2 2 2 2 2 2 . Class Distribution -------------------- 100% | Mutant Dominant Class ---------------- Mutant | -10/Materials Mutant | -9/Materials Mutant | -9/Storage Mutant | -9/Recycling Mutant | -7/Factory Mutant | -7/DSF Mutant | -6/Factory Resources | -11 -10 -9 -9 -9 -7 -7 -6 ----------- Run | Jun Mat Mat Sto Rec Fac DSF Fac Matter Collected 205 | 111 . . . 69 . 20 5 Remotely . | . . . . . . . . Salvage Created 49 | . . . . . . . 49 Parts 7 | . . . . . . . 7 Haulers Intercepted . | . . . . . . . . Recyclers Shooed . | . . . . . . . . Parts Field Recycled . | . . . . . . . . Retrieved Matter . | . . . . . . . . Parts Self-Destructed . | . . . . . . . . Prevented . | . . . . . . . . Kills | -11 -10 -9 -9 -9 -7 -7 -6 ------- Run | Jun Mat Mat Sto Rec Fac DSF Fac Combat Hostiles Destroyed 5 | . . . . . . . 5 AOE 5 | . . . . . . . 5 Classes Destroyed 1 | . . . . . . . 1 Swarmer 5 | . . . . . . . 5 Best Kill Streak 4 | . . . . . . . 4 Combat Bots Only 4 | . . . . . . . 4 Max Kills in Single Turn 3 | . . . . . . . 3 Gunslinging . | . . . . . . . . Exploded 3 | . . . . . . . 3 Melee . | . . . . . . . . Uniques/NPCs Destroyed . | . . . . . . . . Combat | -11 -10 -9 -9 -9 -7 -7 -6 -------- Run | Jun Mat Mat Sto Rec Fac DSF Fac Damage Taken 1252 | . 22 45 159 27 45 10 944 Core 1093 | . 22 45 159 27 45 10 785 Absorbed by Shields 4 | . . . . . . 4 . Core Remaining (%) 81 | 100 91 . . 42 . 92 . Volleys Fired 3 | . . . . . . . 3 Largest 2 | . . . . . . . 2 Hottest 60 | . . . . . . . 60 Shots Fired 6 | . . . . . . . 6 Gun . | . . . . . . . . Cannon . | . . . . . . . . Launcher 6 | . . . . . . . 6 Special . | . . . . . . . . Kinetic . | . . . . . . . . Thermal . | . . . . . . . . Explosive 6 | . . . . . . . 6 Electromagnetic . | . . . . . . . . Robot Hit Streak 1 | . . . . . . . 1 Robot Miss Streak 1 | . . . . . . . 1 Penetration Max . | . . . . . . . . Secondary Targets . | . . . . . . . . Shots Hit Robots 1 | . . . . . . . 1 Core Hits 7 | . . . . . . . 7 Critical Kills . | . . . . . . . . Critical Parts Destroyed . | . . . . . . . . Critical Strikes . | . . . . . . . . Melee Attacks . | . . . . . . . . Impact . | . . . . . . . . Slashing . | . . . . . . . . Piercing . | . . . . . . . . Sneak Attacks . | . . . . . . . . Combat Hostiles . | . . . . . . . . Follow-up Attacks . | . . . . . . . . Damage Inflicted 323 | . . . . . . . 323 Guns . | . . . . . . . . Cannons . | . . . . . . . . Explosions 323 | . . . . . . . 323 Melee . | . . . . . . . . Ramming . | . . . . . . . . Kinetic . | . . . . . . . . Thermal . | . . . . . . . . Explosive 323 | . . . . . . . 323 Electromagnetic . | . . . . . . . . Impact . | . . . . . . . . Slashing . | . . . . . . . . Piercing . | . . . . . . . . Highest Corruption . | . . . . . . . . Average Corruption . | . . . . . . . . Corruption Purged . | . . . . . . . . Corruption Blocked . | . . . . . . . . Overload Shots . | . . . . . . . . Overflow Damage 38 | . . . . . . . 38 Projectiles . | . . . . . . . . Explosions 38 | . . . . . . . 38 Melee . | . . . . . . . . Knockbacks . | . . . . . . . . Impact . | . . . . . . . . Kinetic . | . . . . . . . . Secondary . | . . . . . . . . Self-Inflicted Damage . | . . . . . . . . Shots . | . . . . . . . . Rammed . | . . . . . . . . Targets Rammed . | . . . . . . . . Kicked . | . . . . . . . . Crushed . | . . . . . . . . Highest Temperature 3 | . . . . . . . 3 Average Temperature 3 | . . . . . . . 3 Received Heat Transfer 147 | . 12 24 48 27 12 6 18 Siege Activations . | . . . . . . . . Robots Corrupted . | . . . . . . . . Combat Hostiles . | . . . . . . . . Parts Fried . | . . . . . . . . Impact Corruptions . | . . . . . . . . Robots Melted . | . . . . . . . . Combat Hostiles . | . . . . . . . . Parts Melted . | . . . . . . . . Heat Transferred . | . . . . . . . . Parts Sabotaged . | . . . . . . . . Parts Stolen . | . . . . . . . . Parts Stripped . | . . . . . . . . Power Chain Reactions . | . . . . . . . . Missiles Intercepted . | . . . . . . . . Alert | -11 -10 -9 -9 -9 -7 -7 -6 ------- Run | Jun Mat Mat Sto Rec Fac DSF Fac Peak Influence 335 | . 15 35 74 28 26 18 335 Initial 28 | . . 5 14 28 11 18 9 Average 43 | . 3 15 39 28 18 18 105 Maximum Alert Level 1 | . . . . . . . 1 Low Security (%) 92 | 100 100 100 100 100 100 100 73 Level 1 7 | . . . . . . . 26 Level 2 . | . . . . . . . . Level 3 . | . . . . . . . . Level 4 . | . . . . . . . . Level 5 . | . . . . . . . . High Security . | . . . . . . . . Max Security . | . . . . . . . . Squads Dispatched 7 | . . 2 1 . . 1 3 Investigation 1 | . . 1 . . . . . Extermination . | . . . . . . . . Reinforcement 6 | . . 1 1 . . 1 3 Assault . | . . . . . . . . Garrison . | . . . . . . . . Intercept . | . . . . . . . . Searches Triggered . | . . . . . . . . Construction Impeded . | . . . . . . . . Haulers Reinforced . | . . . . . . . . Active Scanning Responses . | . . . . . . . . Cargo Convoy Interrupts . | . . . . . . . . Stealth | -11 -10 -9 -9 -9 -7 -7 -6 --------- Run | Jun Mat Mat Sto Rec Fac DSF Fac Distress Signals 3 | . . 1 1 . . . 1 Communications Jammed . | . . . . . . . . Distress Signals . | . . . . . . . . Times Spotted 43 | . 4 4 6 1 1 7 20 Peak Tracking Total 9 | . 4 4 6 1 1 4 9 Tactical Retreats 3 | . . . . . . . 3 Traps | -11 -10 -9 -9 -9 -7 -7 -6 ------- Run | Jun Mat Mat Sto Rec Fac DSF Fac Traps Triggered 3 | . . . 1 . . 2 . Indirectly . | . . . . . . . . Trap Hack Attempts . | . . . . . . . . Triggered . | . . . . . . . . Disarmed . | . . . . . . . . Reprogrammed . | . . . . . . . . Reused . | . . . . . . . . Traps Extracted . | . . . . . . . . Installed . | . . . . . . . . Triggered . | . . . . . . . . Machines | -11 -10 -9 -9 -9 -7 -7 -6 ---------- Run | Jun Mat Mat Sto Rec Fac DSF Fac Machines Disabled 4 | . . . . . . . 4 Max in Single Turn 4 | . . . . . . . 4 Machines Repaired . | . . . . . . . . Machines Sabotaged . | . . . . . . . . Overloaded Fab Kills . | . . . . . . . . Hacking | -11 -10 -9 -9 -9 -7 -7 -6 --------- Run | Jun Mat Mat Sto Rec Fac DSF Fac Machines Accessed 2 | . . 1 . . 1 . . Terminals 2 | . . 1 . . 1 . . Fabricators . | . . . . . . . . Repair Stations . | . . . . . . . . Recycling Units . | . . . . . . . . Scanalyzers . | . . . . . . . . Garrison Access . | . . . . . . . . Total Hacks 5 | . . 4 . . 1 . . Successful 1 | . . . . . 1 . . Failed 4 | . . 4 . . . . . Catastrophic 1 | . . 1 . . . . . Database Lockouts . | . . . . . . . . Manual 5 | . . 4 1 . . . . Terminals 5 | . . 4 . . 1 . . Fabricators . | . . . . . . . . Repair Stations . | . . . . . . . . Recycling Units . | . . . . . . . . Scanalyzers . | . . . . . . . . Garrison Access . | . . . . . . . . Terminal Hacks 1 | . . . . . 1 . . Open DSF 1 | . . . . . 1 . . Fabricator Hacks . | . . . . . . . . Repair Station Hacks . | . . . . . . . . Recycling Unit Hacks . | . . . . . . . . Scanalyzer . | . . . . . . . . Garrison Access Hacks . | . . . . . . . . Unauthorized Hacks . | . . . . . . . . Terminals . | . . . . . . . . Fabricators . | . . . . . . . . Repair Stations . | . . . . . . . . Recycling Units . | . . . . . . . . Scanalyzers . | . . . . . . . . Garrison Access . | . . . . . . . . Data Cores Recovered . | . . . . . . . . Used . | . . . . . . . . Hacking Detections 1 | . . 1 . . . . . Full Trace Events 1 | . . 1 . . . . . Feedback Events . | . . . . . . . . Feedback Blocked . | . . . . . . . . Robot Schematics Acquired . | . . . . . . . . Robots Built . | . . . . . . . . Authchips . | . . . . . . . . Time . | . . . . . . . . Total Robot Build Rating . | . . . . . . . . Part Schematics Acquired . | . . . . . . . . Parts Built . | . . . . . . . . Authchips . | . . . . . . . . Time . | . . . . . . . . Total Part Build Rating . | . . . . . . . . Parts Repaired . | . . . . . . . . Time . | . . . . . . . . Parts Recycled . | . . . . . . . . Recycled Matter . | . . . . . . . . Retrieved Matter . | . . . . . . . . Retrieved Components . | . . . . . . . . Parts Scanalyzed . | . . . . . . . . Part Schematics Acquired . | . . . . . . . . Parts Damaged . | . . . . . . . . Bothacking | -11 -10 -9 -9 -9 -7 -7 -6 ------------ Run | Jun Mat Mat Sto Rec Fac DSF Fac Used RIF Installer . | . . . . . . . . Robots Hacked . | . . . . . . . . Non-combat . | . . . . . . . . Combat . | . . . . . . . . Robot Hacks Applied . | . . . . . . . . Relay Couplers Released . | . . . . . . . . Fabnet Peak Effective % . | . . . . . . . . Robots Rewired . | . . . . . . . . Allies Hacked . | . . . . . . . . Hacks Repelled . | . . . . . . . . Allies | -11 -10 -9 -9 -9 -7 -7 -6 -------- Run | Jun Mat Mat Sto Rec Fac DSF Fac Total Allies . | . . . . . . . . Largest Group . | . . . . . . . . Highest-Rated Group . | . . . . . . . . Highest-Rated Ally . | . . . . . . . . Total Orders . | . . . . . . . . Ally Attacks . | . . . . . . . . Total Damage . | . . . . . . . . Kills . | . . . . . . . . Allies Corrupted . | . . . . . . . . Allies Melted . | . . . . . . . . Intel | -11 -10 -9 -9 -9 -7 -7 -6 ------- Run | Jun Mat Mat Sto Rec Fac DSF Fac Robot Analysis Total . | . . . . . . . . Derelict Logs Recovered . | . . . . . . . . Drone Launches . | . . . . . . . . Drone Recoveries . | . . . . . . . . Exploration | -11 -10 -9 -9 -9 -7 -7 -6 ------------- Run | Jun Mat Mat Sto Rec Fac DSF Fac Turns Passed 481 | 11 43 45 39 86 48 76 133 Spaces Moved 859 | 23 81 90 78 172 96 85 234 Core 859 | 23 81 90 78 172 96 85 234 Treads . | . . . . . . . . Legs . | . . . . . . . . Wheels . | . . . . . . . . Hover . | . . . . . . . . Flight . | . . . . . . . . Fastest Speed 50 | 50 50 50 50 50 50 50 50 Average Speed 50 | 50 50 50 50 50 50 50 50 Slowest Speed 50 | 50 50 50 50 50 50 50 50 Overloaded Moves . | . . . . . . . . Propulsion Burnouts . | . . . . . . . . Robots Hopped . | . . . . . . . . Cave-ins Triggered . | . . . . . . . . Exploration Rate (%) 26 | 3 24 12 22 48 5 84 11 Regions Visited 7 Branch Regions 2 Pre-discovered Areas . | . . . . . . . . Known Exits Taken 1 | . . . . . 1 . . Unknown Exits Taken 5 | 1 1 1 1 1 . . . Scrap Searched . | . . . . . . . . Spaces Dug . | . . . . . . . . Terrain Destroyed 22 | . . . . . . . 22 Melee . | . . . . . . . . Projectile . | . . . . . . . . AOE 22 | . . . . . . . 22 Terrain Rammed . | . . . . . . . . Walls Destroyed . | . . . . . . . . Machines Disabled . | . . . . . . . . Actions | -11 -10 -9 -9 -9 -7 -7 -6 --------- Run | Jun Mat Mat Sto Rec Fac DSF Fac Total 897 | 22 82 89 77 171 95 117 244 Wait 18 | . . . . . . 18 . Move 852 | 22 80 89 77 171 95 84 234 Hop . | . . . . . . . . Pick Up 2 | . 2 . . . . . . Fast Attach 1 | . . . . . . . 1 Attach 4 | . . . . . . . 4 Detach 2 | . . . . . . . 2 Swap . | . . . . . . . . Drop . | . . . . . . . . Fire 3 | . . . . . . . 3 Melee . | . . . . . . . . Ram . | . . . . . . . . Kick . | . . . . . . . . Crush . | . . . . . . . . Escape Stasis 14 | . . . . . . 14 . Rewire 1 | . . . . . . 1 . Trap . | . . . . . . . . Miscellaneous . | . . . . . . . . Route ------- -11/Junkyard -10/Materials -9/Materials -9/Storage -9/Recycling -7/Factory (discovered 2 exits: [*Low] / DSF) -7/DSF -6/Factory History --------- Turn | Location | Event 5 | -11/Junkyard | Discovered new exit (range 14) 12 | -11/Junkyard | Entered Materials 52 | -10/Materials | Discovered new exit (range 7) 55 | -10/Materials | Entered another Materials area 55 | -9/Materials | Evolved 2 slots: Utility x2 97 | -9/Materials | Discovered new exit (range 7) 100 | -9/Materials | Entered Storage 138 | -9/Storage | Used back door to open Recycling access 138 | -9/Storage | Discovered new exit (range 3) 139 | -9/Storage | Core integrity fell below 50% 139 | -9/Storage | Entered Recycling 218 | -9/Recycling | Discovered new exit (range 16) 225 | -9/Recycling | Entered Factory 225 | -7/Factory | Evolved 4 slots: Utility x4 247 | -7/Factory | Discovered new exit (range 12) 273 | -7/Factory | Identified exit to DSF 273 | -7/Factory | Entered DSF 274 | -7/DSF | Joined Warlord attack on 0b10 via DSF 287 | -7/DSF | Additional patrols routed to DSF 305 | -7/DSF | Build established: Mutant 341 | -7/DSF | Discovered new exit (range 15) 349 | -7/DSF | Entered Factory 349 | -6/Factory | Evolved 2 slots: Utility x2 395 | -6/Factory | 4 allies followed out of DSF 475 | -6/Factory | Core integrity fell below 50% 479 | -6/Factory | Core integrity fell below 20% 482 | -6/Factory | Self-destructed Last Messages --------------- 00470_ Grenade Launcher destroyed. 00471_ Penetrated by Slug. 00471_ Grenade Launcher destroyed. 00473_ U-05 Engineer lays Concrete. 00474_ K-01 Serf collects debris. 00474_ U-05 Engineer lays Concrete. 00475_ U-05 Engineer builds a Wall. 00476_ U-05 Engineer lays Concrete. 00477_ Penetrated by Slug. 00477_ K-01 Serf collects debris. 00477_ U-05 Engineer lays Concrete. 00478_ Slug penetrates Wall. 00478_ Penetrated by Slug. 00478_ U-05 Engineer lays Concrete. 00480_ Extracted 5 matter. 00480_ U-05 Engineer lays Concrete. 00480_ Penetrated by Slug. 00481_ Slug penetrates Wall. 00481_ K-01 Serf collects debris. 00481_ U-05 Engineer lays Concrete. Map ----- +----------------------------------------------------+ | ?????????????????#"" # [ " " ?????? | | ??????????????????"T # #? " " ?????? | | ???????????????????? / #? " " ??????? | | ?????????????????????? # #?? " " ??????? | | ????????????????????####+### #?? " " ??????? | | ????????????????????# #??? " " ??????? | | ????????????????????# #??? " "???????? | | ???????############## #???? " "???????? | | ???????# "" #???? ???????? | | ???????# ! "" #????? ????????? | | ???????# "" #????? ????????? | | ???????#=[= ] #####+##?????#### | | ???????#=[ u s"% ???? =% | | ???????#[= u " * | | ???????# u ks"% | | ???????# # | | ???????# s ? | | ???????# ! ! ## ########## | | ???????# ## # #?# ? | | ???????#! ?### #?# " " " | | ????????############???# #?# " " " | | ???????????????????????# h #?# " " " | | ???????????????????????#! h k #?# " " " | | ???????????????????????# #?# " " " | | ???????????????????????# ############?# " " " | | ???????????????????????# @ #????????????# " " " | | ???????????????????????# #????????????# " " " | | ???????????????????????# #???????####?# " " " | | ???????????????????????# #??????##T ### | | ???????????????????????# #??????# + | | ???????????????????????# #??????# ######### | | ???????????????????????# #???#### #???????? | | ???????????????????????# ##### ^ +???????? | | ???????????????????????# #???????? | | ???????????????????????# ! #???????? | | ???????????????????????# #???????? | | ???????????????????????# ######???????? | | ???????????????????????# " " " #????????????? | | ???????????????????????# " " " #????????????? | | ???????????????????????# " " " #????????????? | | ???????????????????????# R " " " #????????????? | | ???????????????????????# " " " #????????????? | | ???????????????????????# " " " #????????????? | | ?????????????????????? " " " #????????????? | | ????????????????????? " " " ????????????? | | ????????????????????? """ " " " ????????????? | | ????????????????????? """ ????????????? | | ???????????????????? ???" #???????????? | | ????????????????????????" ? ? #???????????? | | ????????????????????????? ? ? #???????????? | +----------------------------------------------------+ Best States ------------- Heat Dissipation 37 Energy Generation 5 Energy Capacity 100 Matter Stores 300 Matter Capacity 300 Sight Range 16 Terrain Scan Density 10 Evasion (%) 50 Item Schematics ----------------- None Robot Schematics ------------------ None Fabricated ------------ Nothing Alien Tech Used ----------------- None Achievements -------------- None Challenges ------------ None Game ------ Seed StorageStormLog Manual? 0 Play Time 00:09:16 Cumulative 124.3 hours Start 2023.04.18 @ 12:14:17 End 2023.04.18 @ 12:23:43 Sessions 1 Manual Loads 0 Difficulty Rogue Special Mode None Game No. 354 Rogue 354 Adventurer 0 Explorer 0 Win Type - Total 4 Types 4/0/0/0/0/0/0/0/0 Lore% 60 Gallery% 61 Achievement% 54 Wizard Run 0 Options --------- ASCII 0 Keyboard 0 Movement Numpad Keybinds 0 Fullscreen 1 Font 12/Smallcaps Map View 83x54 Tactical HUD 1 Map Filters NONE Filters NONE Steam 1 RUN: b196ed2c-3166-4fa8-b4a2-ed348297034b